[Event "World Senior chT-65 2019"]
[Site "Rhodes"]
[Date "2019.04.24"]
[Round "9.5"]
[White "Vaisser, Anatoli"]
[Black "Knaak, Rainer"]
[Result "1/2-1/2"]
[ECO "D36"]
[WhiteElo "2482"]
[BlackElo "2482"]
[Annotator "ChessBase"]
[PlyCount "31"]
[EventDate "2019.04.16"]
[EventType "team-tourn"]
[EventCountry "GRE"]
[SourceTitle "playchess.com"]
[Source "ChessBase"]
[SourceQuality "1"]
[WhiteTeam "France"]
[BlackTeam "Germany"]
[WhiteTeamCountry "FRA"]
[BlackTeamCountry "GER"]
[TimeControl "40/5400+30:1800+30"]

1. d4 {[%emt 0:00:00]} d5 {[%emt 0:00:00]} 2. c4 {[%emt 0:00:00]} e6 {[%emt 0:00:00]} 3. Nc3 {[%emt 0:00:00]} Nf6 {[%emt 0:00:20]} 4. cxd5 {[%emt 0:00:00]} exd5 {[%emt 0:00:07]} 5. Bg5 {[%emt 0:00:04]} Be7 {[%emt 0:00:38]} 6. e3 {[%emt 0:00:09]} Nbd7 {[%emt 0:00:47]} 7. Bd3 {[%emt 0:00:10]} O-O {[%emt 0:00:30]} 8. Nf3 {[%emt 0:00:46]} c6 {[%emt 0:00:23]} 9. Qc2 {[%emt 0:00:37]} Re8 {[%emt 0:00:14]} 10. O-O {[%emt 0:01:23]} Nf8 {[%emt 0:00:16]} 11. Ne5 {[%emt 0:00:27]} N6d7 {[%emt 0:01:03]} 12. Bxe7 {[%emt 0:00:35]} Qxe7 {[%emt 0:00:34]} 13. Nxd7 {[%emt 0:00:14]} Bxd7 {[%emt 0:00:20]} 14. b4 {[%emt 0:00:43]} a6 {[%emt 0:03:53]} 15. a4 {[%emt 0:00:56]} Qd6 {[%emt 0:02:18]} 16. Rab1 {[%emt 0:00:41]} 1/2-1/2

[Event "World Senior chT-65 2019"]
[Site "Rhodes"]
[Date "2019.04.24"]
[Round "9.6"]
[White "Vogt, Lothar"]
[Black "Sharif, Mehrshad"]
[Result "1/2-1/2"]
[ECO "C00"]
[WhiteElo "2362"]
[BlackElo "2331"]
[Annotator "ChessBase"]
[PlyCount "25"]
[EventDate "2019.04.16"]
[EventType "team-tourn"]
[EventCountry "GRE"]
[SourceTitle "playchess.com"]
[Source "ChessBase"]
[SourceQuality "1"]
[WhiteTeam "Germany"]
[BlackTeam "France"]
[WhiteTeamCountry "GER"]
[BlackTeamCountry "FRA"]
[TimeControl "40/5400+30:1800+30"]

1. e4 {[%emt 0:00:00]} e6 {[%emt 0:00:00]} 2. d3 {[%emt 0:00:00]} d5 {[%emt 0:00:25]} 3. Nd2 {[%emt 0:00:00]} Nf6 {[%emt 0:00:27]} 4. Ngf3 {[%emt 0:00:00]} Nc6 {[%emt 0:00:47]} 5. c3 {[%emt 0:01:38]} e5 {[%emt 0:00:26]} 6. Be2 {[%emt 0:00:10]} a5 {[%emt 0:00:31]} 7. O-O {[%emt 0:00:07]} Be7 {[%emt 0:00:56]} 8. Re1 {[%emt 0:03:56]} O-O {[%emt 0:01:09]} 9. b3 {[%emt 0:04:24]} Qd6 {[%emt 0:11:34]} 10. Bb2 {[%emt 0:02:07]} Rd8 {[%emt 0:03:20]} 11. Qc2 {[%emt 0:01:12]} dxe4 {[%emt 0:01:21]} 12. dxe4 {[%emt 0:00:36]} Nh5 {[%emt 0:01:52]} 13. g3 {[%emt 0:08:03]} 1/2-1/2

[Event "World Senior chT-65 2019"]
[Site "Rhodes"]
[Date "2019.04.24"]
[Round "9.9"]
[White "Westerinen, Heikki M.J."]
[Black "Birnboim, Nathan"]
[Result "1/2-1/2"]
[ECO "B83"]
[WhiteElo "2286"]
[BlackElo "2365"]
[Annotator "NA"]
[PlyCount "66"]
[EventDate "2019.04.16"]
[EventType "team-tourn"]
[EventCountry "GRE"]
[SourceTitle "playchess.com"]
[Source "ChessBase"]
[SourceQuality "1"]
[WhiteTeam "Finland"]
[BlackTeam "Israel"]
[WhiteTeamCountry "FIN"]
[BlackTeamCountry "ISR"]
[TimeControl "40/5400+30:1800+30"]

1. e4 {[%emt 0:00:00]} c5 {[%emt 0:00:00]} 2. Nf3 {[%emt 0:00:07]} Nc6 {[%emt 0:00:00]} 3. d4 {[%emt 0:00:26]} cxd4 {[%emt 0:00:00]} 4. Nxd4 {[%emt 0:00:17]} Nf6 {[%emt 0:00:02]} 5. Nc3 {[%emt 0:00:14]} e6 {[%emt 0:00:24]} 6. a3 {[%emt 0:13:54]} d6 {[%emt 0:08:01]} 7. Be2 {[%emt 0:01:00]} Be7 {[%emt 0:00:44]} 8. O-O {[%emt 0:00:44]} O-O {[%emt 0:00:14]} 9. Be3 {[%emt 0:02:15]} Bd7 {[%emt 0:00:34]} 10. Qd2 {[%emt 0:05:18]} a6 {[%emt 0:09:52]} 11. Rad1 {[%emt 0:02:15]} Qc7 {[%emt 0:00:36]} 12. f4 {[%emt 0:06:26]} Rac8 {[%emt 0:11:19]} 13. Nb3 {[%emt 0:01:46]} Rfd8 {[%emt 0:20:07]} 14. Bf3 {[%emt 0:01:11]} Be8 {[%emt 0:01:59]} 15. Qf2 {[%emt 0:03:18]} Nd7 {[%emt 0:00:57]} 16. Rd2 {[%emt 0:08:19]} Bf6 {[%emt 0:08:36]} 17. Rfd1 {[%emt 0:00:41]} Be7 {[%emt 0:06:59]} 18. Be2 {[%emt 0:19:57]} b5 {[%emt 0:03:01]} 19. f5 {[%emt 0:01:59]} Rb8 {[%emt 0:01:41]} 20. g4 {[%emt 0:04:28]} Nde5 {[%emt 0:02:06]} 21. g5 {[%emt 0:01:55]} b4 {[%emt 0:03:00]} 22. axb4 {[%emt 0:00:25]} Rxb4 {[%emt 0:00:06]} 23. h4 {[%emt 0:06:47]} a5 {[%emt 0:03:51]} 24. Nd4 {[%emt 0:01:42]} Nxd4 {[%emt 0:01:06]} 25. Bxd4 {[%emt 0:00:09]} d5 {[%emt 0:01:36]} 26. exd5 {[%emt 0:07:24]} Rxd4 {[%emt 0:03:03]} 27. Rxd4 {[%emt 0:00:14]} Bc5 {[%emt 0:00:16]} 28. Ne4 {[%emt 0:05:43]} Bxd4 {[%emt 0:00:08]} 29. Rxd4 {[%emt 0:00:18]} Qxc2 {[%emt 0:02:26]} 30. dxe6 {[%emt 0:01:56]} Rxd4 {[%emt 0:00:50]} 31. Qxd4 {[%emt 0:00:04]} Qxe2 {[%emt 0:01:53]} 32. Qxe5 {[%emt 0:00:16]} Qe1+ {[%emt 0:01:20]} 33. Kg2 {[%emt 0:00:32]} Qe2+ {[%emt 0:00:19]} 1/2-1/2

[Event "World Senior chT-65 2019"]
[Site "Rhodes"]
[Date "2019.04.24"]
[Round "9.10"]
[White "Berkovich, Mark A"]
[Black "Rantanen, Yrjo A."]
[Result "1/2-1/2"]
[ECO "D05"]
[WhiteElo "2332"]
[BlackElo "2283"]
[Annotator "NA"]
[PlyCount "44"]
[EventDate "2019.04.16"]
[EventType "team-tourn"]
[EventCountry "GRE"]
[SourceTitle "playchess.com"]
[Source "ChessBase"]
[SourceQuality "1"]
[WhiteTeam "Israel"]
[BlackTeam "Finland"]
[WhiteTeamCountry "ISR"]
[BlackTeamCountry "FIN"]
[TimeControl "40/5400+30:1800+30"]

1. d4 {[%emt 0:00:44]} d5 {[%emt 0:00:12]} 2. Nf3 {[%emt 0:00:08]} Nf6 {[%emt 0:00:09]} 3. e3 {[%emt 0:00:05]} e6 {[%emt 0:00:32]} 4. Bd3 {[%emt 0:00:08]} c5 {[%emt 0:00:25]} 5. c3 {[%emt 0:00:11]} Nc6 {[%emt 0:00:16]} 6. O-O {[%emt 0:00:14]} Bd6 {[%emt 0:00:17]} 7. dxc5 {[%emt 0:00:06]} Bxc5 {[%emt 0:00:02]} 8. Nbd2 {[%emt 0:00:07]} a5 {[%emt 0:13:14]} 9. e4 {[%emt 0:00:10]} e5 {[%emt 0:00:18]} 10. exd5 {[%emt 0:04:29]} Qxd5 {[%emt 0:01:21]} 11. Qc2 {[%emt 0:00:28]} Bg4 {[%emt 0:18:15]} 12. Bc4 {[%emt 0:13:12]} Qd7 {[%emt 0:13:15]} 13. Bb5 {[%emt 0:12:26]} Bd6 {[%emt 0:34:15]} 14. Re1 {[%emt 0:24:46]} O-O {[%emt 0:00:00]} 15. Nxe5 {[%emt 0:05:06]} Qc7 {[%emt 0:00:00]} 16. Nxg4 {[%emt 0:02:08]} Nxg4 {[%emt 0:00:00]} 17. Nf3 {[%emt 0:05:32]} Bxh2+ {[%emt 0:00:00]} 18. Kf1 {[%emt 0:04:15]} Rae8 {[%emt 0:04:12]} 19. Bg5 {[%emt 0:00:09]} Bf4 {[%emt 0:07:43]} 20. Qf5 {[%emt 0:10:24]} Bxg5 {[%emt 0:00:00]} 21. Nxg5 {[%emt 0:02:39]} Nf6 {[%emt 0:04:59]} 22. g3 {[%emt 0:04:29]} Ng4 {[%emt 0:00:02]} 1/2-1/2

[Event "World Senior chT-65 2019"]
[Site "Rhodes"]
[Date "2019.04.24"]
[Round "9.11"]
[White "Hurme, Harri"]
[Black "Maryasin, Boris"]
[Result "0-1"]
[ECO "D20"]
[WhiteElo "2148"]
[BlackElo "2297"]
[Annotator "NA"]
[PlyCount "76"]
[EventDate "2019.04.16"]
[EventType "team-tourn"]
[EventCountry "GRE"]
[SourceTitle "playchess.com"]
[Source "ChessBase"]
[SourceQuality "1"]
[WhiteTeam "Finland"]
[BlackTeam "Israel"]
[WhiteTeamCountry "FIN"]
[BlackTeamCountry "ISR"]
[TimeControl "40/5400+30:1800+30"]

1. d4 {[%emt 0:00:00]} d5 {[%emt 0:00:14]} 2. c4 {[%emt 0:00:00]} dxc4 {[%emt 0:00:05]} 3. e3 {[%emt 0:00:02]} e5 {[%emt 0:00:26]} 4. Bxc4 {[%emt 0:00:10]} Nc6 {[%emt 0:00:12]} 5. Nf3 {[%emt 0:04:18]} e4 {[%emt 0:00:28]} 6. Nfd2 {[%emt 0:01:39]} Qg5 {[%emt 0:00:27]} 7. Kf1 {[%emt 0:05:01]} Nf6 {[%emt 0:01:12]} 8. Nc3 {[%emt 0:00:50]} Qg6 {[%emt 0:00:51]} 9. a3 {[%emt 0:06:57]} Bd6 {[%emt 0:04:13]} 10. b4 {[%emt 0:06:14]} O-O {[%emt 0:00:46]} 11. Bb2 {[%emt 0:01:15]} Bf5 {[%emt 0:06:20]} 12. Ne2 {[%emt 0:05:51]} Ne7 {[%emt 0:04:30]} 13. Ng3 {[%emt 0:02:33]} c6 {[%emt 0:06:34]} 14. Nxf5 {[%emt 0:03:24]} Qxf5 {[%emt 0:00:27]} 15. Be2 {[%emt 0:01:40]} Ned5 {[%emt 0:05:06]} 16. Kg1 {[%emt 0:02:25]} h5 {[%emt 0:00:00]} 17. Nc4 {[%emt 0:01:11]} Bc7 {[%emt 0:00:00]} 18. Qb3 {[%emt 0:06:22]} Ng4 {[%emt 0:06:10]} 19. Rf1 {[%emt 0:00:50]} b5 {[%emt 0:00:32]} 20. Nd2 {[%emt 0:05:32]} a5 {[%emt 0:04:02]} 21. f3 {[%emt 0:11:42]} exf3 {[%emt 0:03:32]} 22. Rxf3 {[%emt 0:01:05]} Qe6 {[%emt 0:01:28]} 23. e4 {[%emt 0:05:35]} axb4 {[%emt 0:01:53]} 24. Bf1 {[%emt 0:02:42]} bxa3 {[%emt 0:06:30]} 25. Bxa3 {[%emt 0:04:39]} Bb6 {[%emt 0:01:04]} 26. Bb2 {[%emt 0:03:14]} Qe5 {[%emt 0:01:47]} 27. Rd3 {[%emt 0:09:47]} Qf4 {[%emt 0:02:51]} 28. Nf3 {[%emt 0:02:06]} Qxe4 {[%emt 0:00:19]} 29. h3 {[%emt 0:01:57]} Nge3 {[%emt 0:00:57]} 30. Kf2 {[%emt 0:00:32]} Rfe8 {[%emt 0:02:21]} 31. Be2 {[%emt 0:03:52]} Nxg2 {[%emt 0:03:39]} 32. Bd1 {[%emt 0:00:00]} Ngf4 {[%emt 0:01:05]} 33. Rd2 {[%emt 0:00:00]} Qf5 {[%emt 0:00:56]} 34. Qc2 {[%emt 0:02:23]} Nxh3+ {[%emt 0:01:13]} 35. Kg3 {[%emt 0:00:35]} Qg4+ {[%emt 0:04:45]} 36. Kh2 {[%emt 0:00:03]} Bc7+ {[%emt 0:01:04]} 37. Ne5 {[%emt 0:00:01]} Qh4 {[%emt 0:00:44]} 38. Kg2 {[%emt 0:00:50]} Ne3+ {[%emt 0:00:18]} 0-1

[Event "World Senior chT-65 2019"]
[Site "Rhodes"]
[Date "2019.04.24"]
[Round "9.12"]
[White "Lederman, Leon"]
[Black "Kivimaki, Jaakko"]
[Result "1-0"]
[ECO "C60"]
[WhiteElo "2281"]
[BlackElo "2165"]
[Annotator "NA"]
[PlyCount "79"]
[EventDate "2019.04.16"]
[EventType "team-tourn"]
[EventCountry "GRE"]
[SourceTitle "playchess.com"]
[Source "ChessBase"]
[SourceQuality "1"]
[WhiteTeam "Israel"]
[BlackTeam "Finland"]
[WhiteTeamCountry "ISR"]
[BlackTeamCountry "FIN"]
[TimeControl "40/5400+30:1800+30"]

1. e4 {[%emt 0:00:00]} e5 {[%emt 0:00:00]} 2. Nf3 {[%emt 0:00:00]} Nc6 {[%emt 0:00:00]} 3. Bb5 {[%emt 0:00:00]} Nge7 {[%emt 0:00:00]} 4. O-O {[%emt 0:00:00]} Ng6 {[%emt 0:00:02]} 5. c3 {[%emt 0:00:00]} a6 {[%emt 0:00:04]} 6. Ba4 {[%emt 0:00:04]} Be7 {[%emt 0:01:01]} 7. d4 {[%emt 0:00:08]} d6 {[%emt 0:00:05]} 8. d5 {[%emt 0:05:09]} b5 {[%emt 0:00:56]} 9. Bc2 {[%emt 0:00:03]} Na5 {[%emt 0:00:11]} 10. a4 {[%emt 0:01:29]} Bd7 {[%emt 0:00:12]} 11. Na3 {[%emt 0:01:17]} Qc8 {[%emt 0:00:31]} 12. b4 {[%emt 0:01:23]} Nc4 {[%emt 0:00:06]} 13. Nxc4 {[%emt 0:01:12]} bxc4 {[%emt 0:00:06]} 14. Nd2 {[%emt 0:03:19]} O-O {[%emt 0:00:57]} 15. Nxc4 {[%emt 0:00:09]} f5 {[%emt 0:00:09]} 16. exf5 {[%emt 0:01:26]} Bxf5 {[%emt 0:00:10]} 17. Bxf5 {[%emt 0:00:05]} Qxf5 {[%emt 0:01:14]} 18. Ne3 {[%emt 0:02:21]} Qf7 {[%emt 0:07:27]} 19. c4 {[%emt 0:02:43]} Nf4 {[%emt 0:04:53]} 20. Qc2 {[%emt 0:02:06]} Qh5 {[%emt 0:01:34]} 21. f3 {[%emt 0:01:39]} e4 {[%emt 0:07:49]} 22. Ra2 {[%emt 0:01:02]} Bf6 {[%emt 0:10:02]} 23. Qxe4 {[%emt 0:02:57]} Rae8 {[%emt 0:05:53]} 24. Qxf4 {[%emt 0:10:20]} Be5 {[%emt 0:01:14]} 25. Qg4 {[%emt 0:00:06]} Qxh2+ {[%emt 0:00:26]} 26. Kf2 {[%emt 0:00:04]} Rf6 {[%emt 0:04:31]} 27. Qh3 {[%emt 0:10:20]} Qf4 {[%emt 0:00:17]} 28. Re2 {[%emt 0:05:55]} Bd4 {[%emt 0:03:42]} 29. Rd1 {[%emt 0:05:41]} Ba7 {[%emt 0:04:03]} 30. c5 {[%emt 0:08:46]} Qxb4 {[%emt 0:02:31]} 31. Qd7 {[%emt 0:07:29]} Ref8 {[%emt 0:03:46]} 32. Ng4 {[%emt 0:01:48]} R6f7 {[%emt 0:02:35]} 33. Qe6 {[%emt 0:00:19]} Bxc5+ {[%emt 0:08:55]} 34. Be3 {[%emt 0:00:51]} Qxa4 {[%emt 0:00:13]} 35. Rc1 {[%emt 0:01:16]} Re8 {[%emt 0:03:09]} 36. Rc4 {[%emt 0:04:21]} Qb5 {[%emt 0:02:02]} 37. Nh6+ {[%emt 0:02:02]} gxh6 {[%emt 0:00:29]} 38. Rg4+ {[%emt 0:00:03]} Kh8 {[%emt 0:00:32]} 39. Qxf7 {[%emt 0:00:28]} Bxe3+ {[%emt 0:00:35]} 40. Rxe3 {[%emt 0:01:38]} 1-0

[Event "World Senior chT-65 2019"]
[Site "Rhodes"]
[Date "2019.04.24"]
[Round "9.15"]
[White "Stebbings, Anthony J"]
[Black "Shushpanov, Vladimir"]
[Result "1-0"]
[ECO "B00"]
[WhiteElo "2281"]
[BlackElo "2180"]
[Annotator "NA"]
[PlyCount "26"]
[EventDate "2019.04.16"]
[EventType "team-tourn"]
[EventCountry "GRE"]
[SourceTitle "playchess.com"]
[Source "ChessBase"]
[SourceQuality "1"]
[WhiteTeam "England"]
[BlackTeam "Russia"]
[WhiteTeamCountry "ENG"]
[BlackTeamCountry "RUS"]
[TimeControl "40/5400+30:1800+30"]

1. d4 {[%emt 0:00:18]} Nc6 {[%emt 0:00:02]} 2. e4 {[%emt 0:00:05]} d5 {[%emt 0:01:29]} 3. Nc3 {[%emt 0:01:20]} e5 {[%emt 0:05:42]} 4. Bb5 {[%emt 0:00:22]} dxe4 {[%emt 0:13:02]} 5. dxe5 {[%emt 0:00:16]} Qxd1+ {[%emt 0:01:29]} 6. Kxd1 {[%emt 0:02:18]} Bg4+ {[%emt 0:00:17]} 7. Nge2 {[%emt 0:01:56]} O-O-O+ {[%emt 0:01:08]} 8. Ke1 {[%emt 0:10:26]} Nxe5 {[%emt 0:00:00]} 9. Nxe4 {[%emt 0:05:21]} Be7 {[%emt 0:04:53]} 10. Bf4 {[%emt 0:14:30]} Rd5 11. N2c3 {[%emt 0:01:52]} Bb4 12. a3 {[%emt 0:09:00]} Bxc3+ {[%emt 0:00:53]} 13. Nxc3 {[%emt 0:00:00]} Rd6 {[%emt 0:12:48]} 1-0

[Event "World Senior chT-65 2019"]
[Site "Rhodes"]
[Date "2019.04.24"]
[Round "9.16"]
[White "Blechzin, Igor"]
[Black "Snape, Ian L"]
[Result "1/2-1/2"]
[ECO "E62"]
[WhiteElo "2210"]
[BlackElo "2154"]
[Annotator "NA"]
[PlyCount "64"]
[EventDate "2019.04.16"]
[EventType "team-tourn"]
[EventCountry "GRE"]
[SourceTitle "playchess.com"]
[Source "ChessBase"]
[SourceQuality "1"]
[WhiteTeam "Russia"]
[BlackTeam "England"]
[WhiteTeamCountry "RUS"]
[BlackTeamCountry "ENG"]
[TimeControl "40/5400+30:1800+30"]

1. c4 {[%emt 0:00:00]} Nf6 {[%emt 0:00:09]} 2. Nc3 {[%emt 0:03:45]} g6 {[%emt 0:00:13]} 3. g3 {[%emt 0:01:25]} Bg7 {[%emt 0:00:07]} 4. d4 {[%emt 0:00:15]} O-O {[%emt 0:00:08]} 5. Bg2 {[%emt 0:00:13]} d6 {[%emt 0:00:07]} 6. Nf3 {[%emt 0:00:06]} Nc6 {[%emt 0:00:10]} 7. d5 {[%emt 0:00:25]} Na5 {[%emt 0:00:06]} 8. Nd2 {[%emt 0:00:22]} c6 {[%emt 0:01:05]} 9. O-O {[%emt 0:04:40]} cxd5 {[%emt 0:00:09]} 10. cxd5 {[%emt 0:07:38]} Bd7 {[%emt 0:00:08]} 11. Nf3 {[%emt 0:07:32]} b5 {[%emt 0:06:05]} 12. a3 {[%emt 0:03:53]} Rc8 {[%emt 0:02:17]} 13. Nd4 {[%emt 0:07:31]} Qb6 {[%emt 0:05:55]} 14. h3 {[%emt 0:08:55]} e5 {[%emt 0:06:39]} 15. dxe6 {[%emt 0:01:38]} fxe6 {[%emt 0:00:13]} 16. Nb3 {[%emt 0:03:03]} Nc4 {[%emt 0:01:20]} 17. Nd2 {[%emt 0:05:33]} d5 {[%emt 0:10:56]} 18. a4 {[%emt 0:03:10]} a6 {[%emt 0:01:27]} 19. axb5 {[%emt 0:01:34]} axb5 {[%emt 0:00:33]} 20. Qb3 {[%emt 0:03:09]} Kh8 {[%emt 0:06:06]} 21. Nxc4 {[%emt 0:01:21]} Rxc4 {[%emt 0:02:20]} 22. Bd2 {[%emt 0:02:32]} Nh5 {[%emt 0:11:58]} 23. e3 {[%emt 0:02:57]} Nf6 {[%emt 0:02:30]} 24. Ne2 {[%emt 0:03:35]} Ne4 {[%emt 0:00:50]} 25. Bb4 {[%emt 0:03:42]} Rfc8 {[%emt 0:03:06]} 26. Rad1 {[%emt 0:03:45]} Qa6 {[%emt 0:05:08]} 27. Bxe4 {[%emt 0:04:13]} Rxe4 {[%emt 0:00:14]} 28. Bc3 {[%emt 0:00:47]} Rec4 {[%emt 0:04:47]} 29. Bxg7+ {[%emt 0:01:19]} Kxg7 {[%emt 0:00:02]} 30. Ra1 {[%emt 0:00:50]} Ra4 {[%emt 0:01:46]} 31. Rac1 {[%emt 0:01:46]} Rac4 {[%emt 0:00:57]} 32. Ra1 {[%emt 0:00:24]} Ra4 {[%emt 0:00:36]} 1/2-1/2

[Event "World Senior chT-65 2019"]
[Site "Rhodes"]
[Date "2019.04.24"]
[Round "9.17"]
[White "Page, Mark E"]
[Black "Herzog, Adolf"]
[Result "1/2-1/2"]
[ECO "C01"]
[WhiteElo "2107"]
[BlackElo "2337"]
[Annotator "NA"]
[PlyCount "105"]
[EventDate "2019.04.16"]
[EventType "team-tourn"]
[EventCountry "GRE"]
[SourceTitle "playchess.com"]
[Source "ChessBase"]
[SourceQuality "1"]
[WhiteTeam "England"]
[BlackTeam "Austria"]
[WhiteTeamCountry "ENG"]
[BlackTeamCountry "AUT"]
[TimeControl "40/5400+30:1800+30"]

1. e4 {[%emt 12:08:25]} e6 {[%emt 0:00:07]} 2. d4 {[%emt 0:00:15]} d5 {[%emt 0:00:08]} 3. exd5 {[%emt 0:00:10]} exd5 {[%emt 0:00:08]} 4. Nf3 {[%emt 0:00:11]} Bd6 {[%emt 0:00:33]} 5. c4 {[%emt 0:01:06]} c6 {[%emt 0:01:47]} 6. c5 {[%emt 0:04:03]} Bc7 {[%emt 0:02:10] C01: French: Exchange Variation} 7. Bd3 {[%emt 0:00:31]} Qe7+ {[%emt 0:06:04]} (7... Ne7 8. Qc2 h6 9. O-O O-O 10. h3 b6 11. Re1 Re8 12. a3 Ba6 13. Bxa6 Nxa6 14. Be3 {1-0 (65) Moussard,J (2559)-Krishna,C (2399) Paris 2018}) 8. Be3 {[%emt 0:04:01]} Bf4 $146 {[%emt 0:00:41]} ({Predecessor:} 8... Nf6 9. O-O Ne4 10. Nc3 f5 11. Re1 O-O 12. Bg5 Qf7 13. Qc1 Nd7 14. Bf4 Bxf4 15. Qxf4 {½-½ (28) Wittig,F (2293)-Galje,H (2356) Remote email 2014}) 9. O-O {[%emt 0:06:55]} Bxe3 {[%emt 0:00:07]} 10. fxe3 {[%emt 0:00:04]} Bg4 {[%emt 0:04:58]} 11. Nc3 {[%emt 0:07:08]} Nf6 {[%emt 0:00:31]} 12. Qd2 {[%emt 0:14:25]} Nbd7 {[%emt 0:03:12]} 13. Rae1 {[%emt 0:01:31]} Ne4 {[%emt 0:08:29]} 14. Qc2 {[%emt 0:03:33]} f5 {[%emt 0:03:40]} 15. b4 {[%emt 0:06:39]} a6 {[%emt 0:01:17]} 16. Bxe4 {[%emt 0:08:38]} fxe4 {[%emt 0:01:16]} 17. Nd2 {[%emt 0:00:09]} Nf6 {[%emt 0:01:43]} 18. a4 {[%emt 0:01:50]} O-O {[%emt 0:01:07]} 19. Nb3 {[%emt 0:03:30]} Bd7 {[%emt 0:03:02]} 20. Qe2 {[%emt 0:02:44]} Be8 {[%emt 0:04:52]} 21. h3 {[%emt 0:08:02]} Qc7 {[%emt 0:10:14]} 22. Qf2 {[%emt 0:03:47]} Bd7 {[%emt 0:06:11]} 23. Qf4 {[%emt 0:03:04]} Qc8 {[%emt 0:00:43]} 24. Re2 {[%emt 0:03:58]} Be6 {[%emt 0:01:11]} 25. Ref2 {[%emt 0:02:05]} Rf7 {[%emt 0:02:05]} 26. Qg5 {[%emt 0:04:25]} Kh8 {[%emt 0:01:39]} 27. Ne2 {[%emt 0:03:37]} Qd7 {[%emt 0:03:19]} 28. Nf4 {[%emt 0:02:51]} Raf8 {[%emt 0:00:41]} 29. Nh5 {[%emt 0:03:51]} Nxh5 {[%emt 0:07:15]} 30. Qxh5 {[%emt 0:00:11]} Bf5 {[%emt 0:01:43]} 31. Qh4 h6 {[%emt 0:00:31]} 32. g4 {[%emt 0:00:58]} Bg6 {[%emt 0:01:31]} 33. Rxf7 {[%emt 0:00:28]} Rxf7 {[%emt 0:00:16]} 34. Rxf7 {[%emt 0:00:26]} Bxf7 {[%emt 0:01:40]} 35. Qg3 {[%emt 0:01:04]} Be6 {[%emt 0:01:57]} 36. Kh2 {[%emt 0:00:44]} Kh7 {[%emt 0:00:26]} 37. a5 {[%emt 0:00:20]} Qf7 {[%emt 0:00:48]} 38. Kg2 {[%emt 0:00:34]} Qf6 $11 {[%emt 0:01:28]} 39. Nd2 {[%emt 0:00:23]} Qg5 {[%emt 0:00:58]} 40. Nf1 {[%emt 0:00:32]} h5 {[%emt 0:02:22]} 41. Nh2 {[%emt 0:06:59]} hxg4 {[%emt 0:01:35]} 42. hxg4 {[%emt 0:00:48]} Bc8 {[%emt 0:01:56]} 43. Kf2 {[%emt 0:03:15]} Be6 {[%emt 0:01:42]} 44. Qf4 {[%emt 0:09:00]} Qh4+ {[%emt 0:02:42]} 45. Qg3 {[%emt 0:00:14]} g5 {[%emt 0:00:35]} 46. Kg2 {[%emt 0:00:34]} Qxg3+ {[%emt 0:00:07]} 47. Kxg3 {[%emt 0:00:07]} Kg6 {[%emt 0:00:31]} 48. Nf1 {[%emt 0:00:32]} Bc8 {[%emt 0:00:09]} 49. Nd2 {[%emt 0:00:26]} Kf6 {[%emt 0:00:25]} 50. Nb1 {[%emt 0:00:20]} Bd7 {[%emt 0:00:37]} 51. Nc3 {[%emt 0:00:18]} Ke6 {[%emt 0:00:29]} 52. Kh3 {[%emt 0:02:28]} Ke7 {[%emt 0:00:24]} 53. Ne2 {[%emt 0:01:55]} 1/2-1/2

[Event "World Senior chT-65 2019"]
[Site "Rhodes"]
[Date "2019.04.24"]
[Round "9.18"]
[White "Petschar, Kurt"]
[Black "James, Geoffrey H"]
[Result "0-1"]
[ECO "E19"]
[WhiteElo "2226"]
[BlackElo "2144"]
[Annotator "NA"]
[PlyCount "92"]
[EventDate "2019.04.16"]
[EventType "team-tourn"]
[EventCountry "GRE"]
[SourceTitle "playchess.com"]
[Source "ChessBase"]
[SourceQuality "1"]
[WhiteTeam "Austria"]
[BlackTeam "England"]
[WhiteTeamCountry "AUT"]
[BlackTeamCountry "ENG"]
[TimeControl "40/5400+30:1800+30"]

1. Nf3 {[%emt 0:00:00]} Nf6 {[%emt 0:00:00]} 2. c4 {[%emt 0:00:00]} b6 {[%emt 0:00:14]} 3. g3 {[%emt 0:01:17]} Bb7 {[%emt 0:00:11]} 4. Bg2 {[%emt 0:00:18]} e6 {[%emt 0:00:21]} 5. O-O {[%emt 0:00:08]} Be7 {[%emt 0:00:24]} 6. Nc3 {[%emt 0:01:48]} O-O {[%emt 0:02:31]} 7. d4 {[%emt 0:00:24]} Ne4 {[%emt 0:01:02]} 8. Qc2 {[%emt 0:00:17]} Nxc3 {[%emt 0:00:42]} 9. Qxc3 {[%emt 0:00:06]} f5 {[%emt 0:01:05]} 10. b3 {[%emt 0:06:48]} Bf6 {[%emt 0:02:37]} 11. Bb2 {[%emt 0:00:16]} d6 {[%emt 0:02:24]} 12. Qd2 {[%emt 0:01:16]} Nd7 {[%emt 0:03:31]} 13. d5 {[%emt 0:01:51]} Bxb2 {[%emt 0:00:21]} 14. Qxb2 {[%emt 0:01:29]} e5 {[%emt 0:01:21]} 15. a3 {[%emt 0:00:58]} Qf6 {[%emt 0:04:35]} 16. b4 {[%emt 0:03:10]} a5 {[%emt 0:00:51]} 17. Nd2 {[%emt 0:33:37]} e4 {[%emt 0:19:12]} 18. Qxf6 {[%emt 0:00:14]} Rxf6 {[%emt 0:00:52]} 19. f4 {[%emt 0:09:04]} Rff8 {[%emt 0:09:39]} 20. Nb3 {[%emt 0:04:34]} axb4 {[%emt 0:06:37]} 21. axb4 {[%emt 0:00:11]} b5 {[%emt 0:00:18]} 22. cxb5 {[%emt 0:00:21]} Bxd5 {[%emt 0:00:30]} 23. Nd4 {[%emt 0:00:55]} g6 {[%emt 0:06:00]} 24. Rfc1 {[%emt 0:04:56]} Rxa1 {[%emt 0:00:00]} 25. Rxa1 {[%emt 0:00:07]} Ra8 {[%emt 0:00:00]} 26. Rxa8+ {[%emt 0:00:20]} Bxa8 {[%emt 0:00:00]} 27. Ne6 {[%emt 0:03:03]} c6 {[%emt 0:06:21]} 28. g4 {[%emt 0:05:53]} cxb5 {[%emt 0:04:01]} 29. gxf5 {[%emt 0:00:47]} Nf6 {[%emt 0:02:24]} 30. fxg6 {[%emt 0:02:21]} hxg6 {[%emt 0:01:05]} 31. Nd4 {[%emt 0:02:50]} Kf7 {[%emt 0:01:47]} 32. Nxb5 {[%emt 0:00:21]} Ke7 {[%emt 0:00:19]} 33. Nd4 {[%emt 0:00:48]} Bd5 {[%emt 0:01:55]} 34. b5 {[%emt 0:01:12]} Kd7 {[%emt 0:03:56]} 35. Bh3+ {[%emt 0:01:19]} Kc7 {[%emt 0:00:24]} 36. e3 {[%emt 0:00:06]} Kb6 {[%emt 0:00:48]} 37. Bc8 {[%emt 0:05:05]} Bc4 {[%emt 0:01:27]} 38. h3 {[%emt 0:00:10]} Bxb5 {[%emt 0:00:42]} 39. Nxb5 {[%emt 0:01:00]} Kxb5 {[%emt 0:00:08]} 40. Be6 {[%emt 0:00:00]} d5 {[%emt 0:00:00]} 41. Bf7 {[%emt 0:00:19]} Kc4 {[%emt 0:04:07]} 42. Kf2 {[%emt 0:00:06]} Kd3 {[%emt 0:00:27]} 43. Bxg6 {[%emt 0:00:15]} Kd2 {[%emt 0:00:25]} 44. Bf7 {[%emt 0:06:42]} d4 {[%emt 0:00:45]} 45. Bc4 {[%emt 0:00:00]} dxe3+ {[%emt 0:01:17]} 46. Kf1 {[%emt 0:00:00]} Nh5 {[%emt 0:02:09]} 0-1